bitfinex/quotes_ETHUSD_20260114
["timestamp","ask_amount","ask_price","bid_price","bid_amount"]
[1768432213931,0.99158956,3357.9,3356.8,0.91034315]
[1768432215254,0.99158956,3357.9,3356.7,0.91034315]
[1768432216147,0.002,3359.2,3356.9,0.91034315]
[1768432216306,0.99158956,3359.0,3356.9,0.91034315]
[1768432216637,0.99158956,3358.8,3356.9,0.91034315]
[1768432217031,0.99158956,3358.6,3356.9,0.91034315]
[1768432217236,0.02990177,3358.7,3356.9,0.91034315]
[1768432217237,0.99158956,3358.4,3356.9,0.91034315]
[1768432217610,0.99158956,3358.2,3356.9,0.42754793]
[1768432217825,0.99158956,3358.2,3356.8,0.386]
[1768432218227,0.99158956,3358.2,3356.8,1.29634315]
[1768432219627,0.99158956,3358.2,3356.8,0.91034315]
[1768432219827,0.99158956,3358.2,3356.2,2.97951861]
[1768432219828,0.99158956,3358.0,3356.6,0.387]
[1768432220018,0.99158956,3358.0,3356.6,1.29734315]
[1768432220619,0.94736618,3357.8,3356.6,1.29734315]
[1768432221235,0.94736618,3357.8,3356.1,0.94570513]
[1768432221422,0.94736618,3357.8,3356.2,0.95359133]
[1768432221804,0.94736618,3357.8,3357.1,0.001]
[1768432222003,0.91349242,3357.6,3357.1,0.001]
[1768432222207,0.91349242,3357.6,3356.1,0.387]
[1768432222424,2.97820995,3357.8,3356.1,1.34059133]
[1768432222425,0.91349242,3357.4,3356.1,1.34059133]
[1768432222634,0.91349242,3357.4,3356.2,0.95359133]
[1768432223418,0.91349242,3357.3,3356.0,0.95459133]
[1768432223641,0.91349242,3357.3,3356.2,0.95359133]
[1768432231154,0.91349242,3357.5,3356.2,0.95359133]
[1768432231454,6.49,3357.6,3356.7,0.95359133]
[1768432232150,0.91349242,3357.5,3356.4,0.95359133]
[1768432232923,0.91349242,3357.3,3356.2,0.95359133]
[1768432233131,0.91349242,3357.1,3356.2,0.95359133]
[1768432233330,0.91349242,3357.1,3356.3,5.31690286]
[1768432233540,0.91349242,3357.1,3356.5,0.001]
[1768432235764,0.91349242,3357.4,3356.6,6.27049419]
[1768432236142,0.91349242,3357.4,3356.6,0.95359133]
[1768432236342,0.91349242,3357.4,3356.6,5.31690286]
[1768432237676,0.91349242,3357.2,3356.5,0.001]
[1768432237968,0.94339419,3357.1,3356.5,0.001]
[1768432238631,0.91349242,3357.1,3356.5,0.001]
[1768432239371,0.91349242,3357.4,3356.5,0.62814942]
[1768432239560,0.91349242,3357.4,3356.6,5.31690286]
[1768432239759,0.91349242,3357.4,3356.6,6.27049419]
[1768432240871,0.91349242,3357.4,3356.6,0.95359133]
[1768432241071,0.91349242,3357.4,3356.5,0.62814942]
[1768432241972,0.91349242,3357.4,3356.5,1.58174075]
[1768432244470,0.91349242,3357.4,3356.5,0.95459133]
[1768432245670,0.91349242,3357.4,3356.8,0.001]
[1768432247166,0.002,3357.5,3356.8,0.95459133]
[1768432247535,0.002,3357.5,3357.0,0.95359133]
[1768432248674,0.002,3357.5,3356.8,0.95459133]
[1768432249242,0.91549242,3357.5,3356.8,0.001]
[1768432251937,0.94563225,3357.4,3356.8,0.001]
[1768432253670,0.002,3357.5,3356.8,0.93961002]
[1768432257746,0.002,3357.5,3357.1,0.001]
[1768432260976,0.94763225,3357.5,3357.1,0.001]
[1768432261148,0.97553402,3357.4,3356.8,0.001]
[1768432261344,0.94563225,3357.2,3356.8,0.001]
[1768432261548,0.97553402,3357.2,3356.8,0.001]
[1768432262544,0.395,3357.2,3356.8,0.001]
[1768432262746,1.34063225,3357.2,3356.8,0.001]
[1768432262962,0.94563225,3357.1,3356.8,0.001]
[1768432264685,0.395,3357.2,3356.8,0.001]
[1768432265012,0.395,3357.3,3356.8,0.001]
[1768432266678,0.94563225,3357.2,3356.8,0.001]
[1768432269674,0.94563225,3357.0,3356.0,0.001]
[1768432270000,0.94563225,3356.8,3356.0,0.001]
[1768432270204,0.94563225,3356.6,3356.0,0.001]
[1768432270905,0.97553402,3356.5,3356.0,0.001]
[1768432271299,0.94563225,3356.5,3356.0,0.001]
[1768432273372,6.49,3357.1,3356.2,0.93861002]
[1768432273576,6.49,3357.1,3356.5,0.93861002]
[1768432276509,6.885,3357.3,3356.5,0.93861002]
[1768432278511,6.90824216,3357.3,3356.5,0.93861002]
[1768432278730,0.02324216,3357.2,3356.2,0.93861002]
[1768432279010,0.02324216,3357.1,3356.2,0.93861002]
[1768432279176,0.02324216,3356.9,3356.2,0.93861002]
[1768432279376,0.395,3356.8,3356.2,0.93861002]
[1768432282904,0.395,3356.8,3356.0,0.90792739]
[1768432285314,0.02324216,3356.7,3356.0,0.90792739]
[1768432285502,0.33971833,3356.6,3356.0,0.001]
[1768432285913,0.02324216,3356.7,3356.0,0.001]
[1768432286222,0.02990177,3356.6,3356.0,0.001]
[1768432286423,0.02324216,3356.7,3356.0,0.001]
[1768432286915,0.02990177,3356.6,3356.0,0.001]
[1768432287131,0.05314393,3356.6,3355.9,0.90692739]
[1768432287313,0.64063348,3356.5,3355.9,0.90692739]
[1768432287489,0.02990177,3356.4,3355.0,0.90692739]
[1768432287825,0.41824216,3356.3,3355.0,0.90692739]
[1768432288139,0.02990177,3356.2,3355.0,0.90692739]
[1768432288796,0.02324216,3356.1,3355.0,0.90692739]
[1768432289242,0.41824216,3356.3,3355.0,0.90692739]
[1768432289418,0.33975803,3356.2,3355.0,0.90692739]
[1768432290120,0.02990177,3356.1,3355.0,0.90692739]
[1768432291102,0.02324216,3356.0,3355.0,0.90692739]
[1768432292428,0.02324216,3356.0,3355.3,0.001]
[1768432292725,9.80937965,3356.2,3355.3,0.001]
[1768432292726,6.82975803,3356.2,3355.3,0.90792739]
[1768432292928,0.72480002,3356.1,3355.3,0.90792739]
[1768432298832,0.74804218,3356.1,3355.3,0.90792739]
[1768432299011,0.02324216,3356.0,3355.3,0.90792739]
[1768432300225,0.02990177,3355.9,3355.3,0.90792739]
[1768432300440,0.395,3355.8,3355.3,0.90792739]
[1768432304549,0.395,3355.8,3355.6,0.001]
[1768432305024,0.395,3355.8,3355.4,0.90692739]
[1768432307264,0.395,3355.7,3355.4,0.90692739]
[1768432307425,0.395,3355.6,3355.4,0.90692739]
[1768432308067,6.49,3356.2,3355.4,0.90692739]
[1768432308262,0.395,3356.1,3355.4,0.90692739]
[1768432308446,0.002,3356.5,3355.3,0.001]
[1768432308447,0.002,3356.5,3355.8,0.90692739]
[1768432308644,0.002,3356.5,3355.3,0.001]
[1768432308645,0.002,3356.5,3356.0,0.90692739]
[1768432310659,0.05514393,3356.5,3355.4,0.90249147]
[1768432310842,0.02324216,3356.4,3355.4,0.90249147]
[1768432311036,0.02990177,3356.3,3355.4,0.90249147]
[1768432311659,0.002,3356.5,3355.4,0.90249147]
[1768432311874,0.33993919,3356.4,3355.4,0.90249147]
[1768432312078,0.002,3356.5,3355.4,0.90249147]
[1768432313580,0.395,3356.4,3355.4,0.90249147]
[1768432314275,0.02990177,3356.3,3355.4,0.90249147]
[1768432315277,0.41824216,3356.4,3355.4,0.90249147]
[1768432316584,0.002,3356.1,3355.4,0.90249147]
[1768432320626,0.03190177,3356.1,3355.4,0.90249147]
[1768432320831,0.05514393,3356.1,3355.3,0.90349147]
[1768432322834,0.03190177,3356.1,3355.3,0.90349147]
[1768432324454,0.002,3356.1,3355.3,0.90349147]
[1768432325708,0.395,3356.0,3355.3,0.90349147]
[1768432326037,0.002,3356.1,3355.3,0.90349147]
[1768432328841,0.002,3356.1,3355.6,0.90349147]
[1768432334483,0.395,3356.0,3355.6,0.90349147]
[1768432334848,0.397,3356.1,3355.6,0.90349147]
[1768432336061,0.002,3356.1,3355.6,0.90349147]
[1768432336263,0.002,3356.8,3356.5,0.90249147]
[1768432336461,0.397,3356.8,3356.5,0.90249147]
[1768432337889,0.002,3356.8,3356.5,0.90249147]
[1768432338954,0.09792068,3357.3,3356.8,0.90249147]
[1768432339156,0.395,3357.1,3356.8,0.90249147]
[1768432340777,0.09792068,3357.3,3356.8,0.90249147]
[1768432340985,0.395,3357.2,3356.8,0.90249147]
[1768432341291,0.395,3357.1,3356.8,0.90249147]
[1768432341594,0.49292068,3357.3,3356.8,0.90249147]
[1768432345209,0.09792068,3357.3,3356.8,0.90249147]
[1768432345407,0.395,3357.2,3356.8,0.90249147]
[1768432347274,0.395,3357.2,3356.5,0.91755667]
[1768432350524,0.05314393,3357.1,3356.2,0.91755667]
[1768432350697,0.35246852,3357.0,3356.2,0.91755667]
[1768432350892,0.02990177,3356.9,3356.2,0.91755667]
[1768432351093,0.02990177,3356.9,3355.7,0.91755667]
[1768432351306,0.02324216,3357.0,3355.7,0.91755667]
[1768432351489,3.39691973,3357.2,3355.7,0.91755667]
[1768432351690,0.40262797,3357.1,3355.7,0.91755667]
[1768432352326,0.3727262,3357.1,3355.7,0.91755667]
[1768432352702,0.3727262,3357.1,3355.6,0.001]
[1768432352703,0.3727262,3357.1,3356.2,0.91755667]
[1768432352910,0.002,3357.0,3356.2,0.91755667]
[1768432354212,0.395,3356.9,3356.2,0.91755667]
[1768432359155,0.73489159,3356.9,3356.2,0.91755667]
[1768432359349,0.395,3356.9,3356.2,0.91755667]
[1768432364151,0.002,3357.0,3356.2,0.91755667]
[1768432364358,0.395,3356.8,3356.2,0.91755667]
[1768432365959,0.395,3356.7,3356.2,0.91755667]
[1768432371467,0.396,3356.7,3356.2,0.91755667]
[1768432373089,0.03190177,3357.0,3356.2,0.91755667]
[1768432373256,0.002,3357.0,3356.2,0.91755667]
[1768432373457,0.03190177,3357.0,3356.3,0.9607005]
[1768432373883,0.002,3357.0,3356.3,0.9607005]
[1768432374082,0.002,3357.0,3356.6,0.9607005]
[1768432377267,0.002,3356.7,3356.6,0.9607005]
[1768432377489,0.002,3357.3,3356.9,0.9607005]
[1768432382913,0.002,3357.5,3356.9,0.9607005]
[1768432383113,0.002,3357.8,3357.5,0.9607005]
[1768432383412,0.396,3358.1,3357.8,0.9607005]
[1768432383581,0.002,3358.2,3357.8,0.9607005]
[1768432387231,0.002,3358.7,3358.2,0.9607005]
[1768432387434,0.396,3358.6,3358.2,0.9607005]
[1768432387811,0.396,3358.6,3358.2,0.94925002]
[1768432389696,0.43869264,3358.6,3357.6,0.9607005]
[1768432389896,0.04269264,3358.4,3357.6,0.9607005]
[1768432390531,0.43869264,3358.6,3357.6,0.9607005]
[1768432393208,0.34478577,3358.5,3357.6,0.9607005]
[1768432394025,0.002,3358.7,3358.2,0.9607005]
[1768432395771,0.398,3358.7,3358.2,0.9607005]
[1768432396865,0.002,3358.7,3358.2,0.9607005]
[1768432397055,0.396,3358.6,3358.2,0.9607005]
[1768432401462,0.002,3358.3,3358.2,0.9607005]
[1768432401664,0.398,3358.6,3358.3,0.95371692]
[1768432403869,0.396,3358.5,3358.3,0.95371692]
[1768432404156,0.396,3358.5,3357.9,0.95371692]
[1768432405039,0.396,3358.4,3357.9,0.95371692]
[1768432405233,0.002,3358.6,3357.9,0.95371692]
[1768432405438,0.396,3358.3,3357.9,0.95371692]
[1768432405635,0.002,3358.6,3357.9,0.95371692]
[1768432405946,0.396,3358.2,3357.9,0.95371692]
[1768432406632,0.002,3358.6,3357.9,0.95371692]
[1768432406832,0.396,3358.5,3357.9,0.95371692]
[1768432407271,0.002,3358.6,3357.9,0.95371692]
[1768432407478,0.396,3358.5,3358.0,0.95371692]
[1768432409159,0.002,3358.6,3358.0,0.95371692]
[1768432409359,0.398,3358.6,3358.2,0.95371692]
[1768432413265,0.002,3358.6,3358.2,1.11211641]
[1768432413570,0.398,3358.7,3358.5,0.95371692]
[1768432414113,0.002,3358.7,3358.5,0.95371692]
[1768432414267,0.002,3358.6,3358.5,0.95371692]
[1768432414468,0.396,3358.8,3358.7,0.95371692]
[1768432414809,6.49,3359.1,3358.7,0.95371692]
[1768432414965,0.398,3359.2,3359.1,0.95371692]
[1768432415170,0.002,3359.2,3359.1,0.95371692]
[1768432421372,0.002,3359.5,3359.2,0.95371692]
[1768432424024,0.002,3359.5,3358.5,0.95371692]
[1768432424190,0.002,3359.5,3358.7,0.95371692]
[1768432424376,0.398,3359.5,3358.7,0.95371692]
[1768432425721,0.398,3359.5,3359.1,0.95371692]
[1768432425888,0.002,3359.2,3359.1,0.95371692]
[1768432426417,0.398,3359.5,3359.2,0.95371692]
[1768432429206,0.002,3359.5,3359.2,0.95371692]
[1768432435652,0.002,3359.5,3359.0,0.97097118]
[1768432436065,0.04269264,3359.4,3358.2,0.15839949]
[1768432436365,0.04269264,3359.4,3358.3,0.96997118]
[1768432438254,0.002,3359.2,3358.3,0.96997118]
[1768432439164,0.04469264,3359.2,3358.3,0.96997118]
[1768432442137,0.002,3359.2,3358.3,0.96997118]
[1768432442847,0.002,3359.2,3358.5,0.96997118]
[1768432443165,0.002,3359.2,3358.7,0.96997118]
[1768432443374,0.002,3359.2,3358.9,0.96997118]
[1768432446449,0.002,3359.2,3357.9,0.96997118]
[1768432446768,0.002,3359.2,3358.1,0.96997118]
[1768432448459,0.04469264,3359.2,3358.1,0.96997118]
[1768432448664,0.04269264,3359.0,3358.1,0.96997118]
[1768432449574,0.04269264,3359.0,3358.4,0.001]
[1768432450980,0.07259441,3358.9,3358.0,0.96997118]
[1768432451188,0.07259441,3358.8,3358.0,0.96997118]
[1768432451355,0.04269264,3358.8,3358.0,0.96997118]
[1768432451555,0.396,3358.7,3358.0,0.96997118]
[1768432452280,0.04269264,3358.6,3357.8,0.96997118]
[1768432452781,0.04269264,3358.6,3357.0,0.96997118]
[1768432452958,0.04269264,3358.6,3357.2,0.96997118]
[1768432455757,0.396,3358.5,3357.2,0.96997118]
[1768432461759,0.04469264,3359.2,3357.5,0.99498834]
[1768432461963,0.396,3359.1,3357.7,0.99398834]
[1768432462156,0.396,3359.1,3357.9,0.99398834]
[1768432462356,0.396,3359.1,3358.1,0.99398834]
[1768432462585,0.396,3359.1,3358.3,0.99398834]
[1768432463991,0.04469264,3359.2,3358.3,0.99398834]
[1768432464292,0.396,3359.1,3358.3,0.99398834]
[1768432465075,0.04469264,3359.2,3358.3,0.99398834]
[1768432465392,0.396,3359.1,3358.3,0.99398834]
[1768432465895,0.04469264,3359.2,3358.3,0.99398834]
[1768432466102,0.396,3359.1,3358.3,0.99398834]
[1768432466764,0.002,3359.2,3358.3,0.99398834]
[1768432468898,0.04469264,3359.2,3358.3,0.99398834]
[1768432469066,0.04269264,3359.1,3358.3,0.99398834]
[1768432470393,0.002,3359.2,3358.3,0.99398834]
[1768432473380,0.002,3359.2,3358.4,0.99498834]
[1768432473577,0.002,3358.8,3358.4,0.99498834]
[1768432477275,0.002,3358.8,3358.6,0.99398834]
[1768432480810,0.002,3359.1,3358.8,0.99398834]
[1768432483203,0.002,3359.1,3358.4,5.31306247]
[1768432483204,0.002,3359.1,3358.5,0.99398834]
[1768432483414,0.002,3359.1,3358.7,0.99398834]
[1768432485521,0.002,3359.2,3359.1,0.99398834]
[1768432485810,0.002,3359.2,3358.5,0.99398834]
[1768432486310,0.002,3358.8,3358.5,0.99398834]
[1768432488023,0.002,3358.8,3358.4,0.001]
[1768432488388,0.002,3358.8,3358.4,0.99498834]
[1768432488818,0.002,3359.1,3358.8,0.99398834]
[1768432500414,0.002,3359.1,3358.5,0.91789092]
[1768432508922,0.002,3359.1,3358.7,0.91789092]
[1768432509638,0.002,3359.1,3358.9,0.91789092]
[1768432510933,0.002,3359.5,3359.2,0.91789092]
[1768432511516,0.002,3359.5,3359.4,0.91789092]
[1768432512040,0.002,3359.6,3359.5,0.91789092]
[1768432512419,0.44369264,3360.5,3359.6,0.91789092]
[1768432514031,0.002,3360.5,3359.6,0.91789092]
[1768432514225,0.397,3360.5,3359.6,0.91789092]
[1768432514430,0.44369264,3360.5,3359.6,0.91789092]
[1768432515318,0.397,3360.5,3359.6,0.91789092]
[1768432515728,0.002,3360.5,3359.6,0.91789092]
[1768432519216,0.002,3360.5,3360.0,0.91789092]
[1768432519946,1.07050638,3361.1,3360.5,0.91789092]
[1768432520417,1.07050638,3361.1,3360.7,0.92921935]
[1768432520620,1.07050638,3361.1,3360.4,0.92921935]
[1768432522476,2.97462014,3361.8,3360.4,0.92921935]
[1768432522477,0.9446604,3362.7,3361.1,0.92921935]
[1768432522751,0.9446604,3362.7,3361.5,0.92921935]
[1768432523755,0.99000114,3362.4,3361.5,0.92921935]
[1768432523934,0.395,3362.8,3361.3,0.99552324]
[1768432523935,0.99000114,3362.3,3361.3,0.99552324]
[1768432524124,0.99000114,3362.5,3361.3,0.99552324]
[1768432524871,0.99000114,3362.7,3361.5,0.99552324]
[1768432525151,0.395,3362.9,3361.5,0.99552324]
[1768432525361,0.99000114,3363.0,3361.9,0.99552324]
[1768432525548,0.99000114,3363.4,3362.0,0.99552324]
[1768432525725,0.99000114,3363.3,3362.0,0.99552324]
[1768432526343,0.99000114,3363.3,3362.2,5.31206247]
[1768432526561,1.38500114,3363.6,3362.3,0.99552324]
[1768432526765,1.01990291,3363.5,3362.3,0.99552324]
[1768432527474,0.99000114,3363.4,3362.3,0.99552324]
[1768432527670,0.42490177,3363.5,3361.8,5.31206247]
[1768432527671,0.395,3363.5,3362.6,0.99552324]
[1768432528073,0.395,3363.8,3362.6,0.99552324]
[1768432528274,1.42576832,3363.7,3362.6,0.99552324]
[1768432528474,0.99000114,3363.6,3362.6,0.99552324]
[1768432529341,0.99000114,3363.4,3362.1,0.99552324]
[1768432529543,0.99000114,3363.2,3362.1,0.99552324]
[1768432530479,0.99000114,3363.0,3361.5,0.99552324]
[1768432530780,0.99000114,3362.8,3361.7,0.99552324]
[1768432531080,0.99000114,3362.7,3361.5,0.99552324]
[1768432531298,1.01990291,3362.7,3361.5,0.99552324]
[1768432531987,0.99000114,3362.7,3361.5,0.99552324]
[1768432533796,0.99000114,3363.8,3362.3,0.99552324]
[1768432533965,0.99000114,3363.7,3362.3,0.99552324]
[1768432534293,0.002,3362.9,3362.3,0.99552324]
[1768432536568,0.002,3362.9,3362.5,0.99552324]
[1768432536775,0.002,3362.9,3362.7,0.99552324]
[1768432537155,0.002,3363.2,3362.0,2.97439608]
[1768432537156,0.002,3363.2,3362.9,0.99552324]
[1768432537360,0.99000114,3364.2,3362.9,0.99552324]
[1768432537554,0.99000114,3364.4,3362.9,0.99552324]
[1768432538468,0.99000114,3364.4,3362.9,1.1799204]
[1768432538674,0.99000114,3364.8,3362.9,1.1799204]
[1768432538860,0.99000114,3364.8,3363.0,0.99552324]
[1768432539060,0.99000114,3364.8,3363.1,0.99552324]
[1768432539479,0.99200114,3364.6,3363.1,0.99552324]
[1768432539677,0.99000114,3364.5,3363.1,0.99552324]
[1768432539963,0.99000114,3364.3,3363.1,0.99552324]
[1768432540379,0.99000114,3364.1,3362.7,0.99552324]
[1768432541286,0.02990177,3364.0,3362.7,0.99552324]
[1768432541488,0.99000114,3364.1,3362.7,0.99552324]
[1768432542070,0.394,3364.2,3362.7,0.99552324]
[1768432542266,0.21170195,3364.1,3362.8,0.99552324]
[1768432543377,0.394,3364.3,3362.8,0.99552324]
[1768432543574,1.38400114,3364.3,3362.8,0.99552324]
[1768432543779,1.01990291,3364.2,3362.8,0.99552324]
[1768432544173,1.01990291,3364.2,3362.6,0.99552324]
[1768432544493,0.99000114,3364.0,3362.4,0.99552324]
[1768432544700,2.97256324,3364.1,3362.4,0.99552324]
[1768432544701,0.99000114,3363.8,3362.4,0.99552324]
[1768432544873,0.99000114,3363.6,3362.4,0.99552324]
[1768432545072,1.01990291,3363.5,3362.4,0.99552324]
[1768432545298,0.99000114,3363.5,3362.4,0.99552324]
[1768432545498,0.02990177,3363.4,3362.4,0.99552324]
[1768432545699,0.99000114,3363.5,3362.2,0.99552324]
[1768432546202,0.99000114,3363.3,3362.7,0.001]
[1768432546367,0.99000114,3363.2,3361.7,1.38252324]
[1768432546875,0.99000114,3363.2,3361.8,0.99552324]
[1768432547077,0.99000114,3363.0,3361.8,0.99552324]
[1768432548405,0.99000114,3363.0,3361.9,0.99552324]
[1768432549802,0.394,3363.1,3361.9,0.99552324]
[1768432551004,1.3779756,3363.1,3361.9,0.99552324]
[1768432551302,0.9839756,3363.0,3361.9,0.99552324]
[1768432554012,2.97312852,3363.5,3361.7,0.387]
[1768432554013,0.9839756,3363.5,3362.1,0.96857601]
[1768432554175,0.394,3363.6,3362.3,0.96857601]
[1768432554374,0.394,3363.6,3362.5,0.96857601]
[1768432554605,0.394,3363.6,3362.7,0.96857601]
[1768432554904,0.9839756,3363.8,3362.8,0.99831313]
[1768432555871,0.9839756,3363.8,3362.8,0.96857601]
[1768432556076,0.002,3363.9,3362.9,0.99831224]
[1768432556282,0.39804703,3363.9,3362.9,0.99831224]
[1768432556488,0.002,3363.9,3362.9,0.99831224]
[1768432556908,0.002,3363.9,3362.9,0.96857601]
[1768432558974,0.002,3363.5,3362.9,0.96857601]
[1768432561007,0.002,3363.5,3362.7,1.35557601]
[1768432561204,0.002,3363.5,3362.8,0.96857601]
[1768432561580,0.002,3363.5,3363.0,0.96857601]
[1768432561913,0.002,3363.5,3363.0,0.99831136]
[1768432562325,0.002,3363.8,3363.0,0.99831136]
[1768432562498,0.002,3363.8,3363.2,0.96857601]
[1768432563024,0.002,3363.9,3363.7,0.96857601]
[1768432564011,0.002,3364.2,3363.9,0.96857601]
[1768432567849,0.002,3365.2,3364.6,0.96857601]
[1768432568921,0.002,3365.2,3364.2,0.96857601]
[1768432569341,0.9859756,3365.2,3363.7,0.96857601]
[1768432570613,0.002,3365.2,3363.7,0.96857601]
[1768432570815,0.9859756,3365.2,3363.7,0.96857601]
[1768432571245,0.9859756,3365.2,3363.8,0.96857601]
[1768432571445,0.9859756,3365.2,3363.8,1.15027604]
[1768432571858,0.9859756,3365.2,3364.2,0.001]
[1768432572152,0.9839756,3365.0,3364.2,0.001]
[1768432572361,0.9839756,3364.8,3364.2,0.001]
[1768432573053,0.9839756,3364.6,3364.2,0.001]
[1768432573456,0.9839756,3364.4,3363.3,0.96857601]
[1768432575064,0.9839756,3364.4,3363.0,1.35557601]
[1768432575226,0.9839756,3364.4,3363.0,0.96857601]
[1768432577168,0.9839756,3364.2,3362.8,0.96857601]
[1768432579081,0.9839756,3364.0,3362.3,0.96857601]
[1768432580648,0.91824711,3363.9,3362.3,0.96857601]
[1768432582163,0.90501576,3364.2,3362.5,0.90902438]
[1768432582413,0.90501576,3364.0,3362.5,0.90902438]
[1768432583371,0.42715313,3363.9,3362.9,0.90902438]
[1768432583570,0.394,3364.1,3362.9,0.90902438]
[1768432583771,0.90501576,3364.0,3362.9,0.90902438]
[1768432584072,0.90501576,3364.0,3362.8,0.001]
[1768432585073,0.90501576,3363.9,3362.8,0.001]
[1768432585269,0.90501576,3363.7,3362.8,0.001]
[1768432586747,0.90501576,3363.6,3362.8,0.001]
[1768432586948,0.90501576,3363.5,3362.2,0.001]
[1768432587143,0.90501576,3363.3,3362.2,0.001]
[1768432588481,0.90501576,3363.1,3362.2,0.001]
[1768432588853,0.90501576,3362.9,3362.2,0.001]
[1768432589081,0.90501576,3362.7,3361.4,0.91002438]
[1768432589282,0.90501576,3362.6,3361.4,0.91002438]
[1768432591952,0.90501576,3362.5,3361.4,0.001]
[1768432592160,0.90501576,3362.5,3360.6,0.02975659]
[1768432592479,0.90501576,3362.3,3360.7,0.90902438]
[1768432592860,0.90501576,3362.3,3360.4,0.90902438]
[1768432593065,0.90501576,3362.1,3360.4,0.90902438]
[1768432593264,0.90501576,3361.9,3360.4,0.90902438]
[1768432593464,0.90501576,3361.7,3360.4,0.90902438]
[1768432593763,0.394,3361.6,3360.4,0.90902438]
[1768432594082,0.90501576,3361.6,3360.4,0.90902438]
[1768432594382,0.394,3361.5,3360.4,0.90902438]
[1768432594777,0.394,3361.5,3359.5,3.36259586]
[1768432594778,0.90501576,3361.4,3359.5,0.90902438]
[1768432595085,0.90501576,3361.4,3360.7,0.001]
[1768432596854,0.90501576,3361.3,3359.7,0.90902438]
[1768432598262,0.90501576,3361.2,3359.7,0.90902438]
[1768432598889,0.394,3361.1,3359.7,0.90902438]
[1768432599186,1.29901576,3361.1,3359.7,0.90902438]
[1768432599889,0.90501576,3361.0,3359.7,0.90902438]
[1768432600386,0.394,3360.9,3359.9,0.90902438]
[1768432600587,0.394,3360.8,3360.1,0.90902438]
[1768432600888,0.394,3360.8,3360.2,0.02976013]
[1768432601300,0.394,3360.8,3360.1,0.90902438]
[1768432602482,0.394,3360.8,3359.2,0.90902438]
[1768432603183,0.394,3360.8,3359.4,0.90902438]
[1768432603791,0.394,3360.8,3359.5,0.02976633]
[1768432603975,0.394,3360.8,3359.6,0.90902438]
[1768432604298,0.394,3360.8,3359.7,0.02976456]
[1768432604483,0.394,3360.8,3359.8,0.90902438]
[1768432606708,0.394,3360.8,3360.0,0.001]
[1768432608779,1.29901576,3360.8,3360.0,0.001]
[1768432609381,0.90501576,3360.8,3360.0,0.001]
[1768432609577,1.29901576,3360.8,3360.0,0.001]
[1768432613309,0.90501576,3360.8,3360.0,0.001]
[1768432613614,0.394,3360.7,3360.0,0.95996963]
[1768432614416,0.95467004,3360.6,3360.0,0.001]
[1768432619417,0.95467004,3360.6,3360.3,0.001]
[1768432619618,0.95467004,3360.6,3360.0,0.001]
[1768432620193,0.394,3360.7,3360.0,0.001]
[1768432620493,0.394,3360.6,3360.0,0.95996963]
[1768432620887,0.002,3361.0,3360.0,0.95996963]
[1768432621108,0.394,3360.9,3360.2,0.95896963]
[1768432623221,0.394,3360.8,3360.2,0.95896963]
[1768432623888,0.95667004,3361.0,3360.2,0.95896963]
[1768432624120,0.394,3360.9,3360.2,0.95896963]
[1768432626014,1.34867004,3360.9,3360.2,0.95896963]
[1768432628221,1.78125141,3360.9,3360.0,0.95996963]
[1768432628523,0.394,3360.9,3360.0,0.95996963]
[1768432629115,0.394,3360.8,3360.0,0.95996963]
[1768432629998,0.95467004,3360.7,3360.0,0.001]
[1768432630623,0.002,3360.6,3360.0,0.001]
[1768432631026,0.002,3360.6,3359.1,0.386]
[1768432631027,0.98657181,3360.6,3359.4,0.95896963]
[1768432631231,0.98657181,3360.6,3358.9,0.95896963]
[1768432631398,0.95467004,3360.4,3358.9,0.95896963]
[1768432631730,0.95467004,3360.2,3358.9,0.95896963]
[1768432632030,0.02990177,3360.3,3358.9,0.95896963]
[1768432632031,0.95467004,3360.0,3358.9,0.95896963]
[1768432632636,0.394,3359.9,3359.1,0.95896963]
[1768432632997,0.95467004,3359.8,3358.9,0.95896963]
[1768432635503,0.95467004,3359.8,3358.4,0.001]
[1768432635702,0.95467004,3359.8,3358.4,0.95996963]
[1768432635904,0.95467004,3359.8,3358.5,0.95896963]
[1768432636202,0.95467004,3359.6,3358.5,0.95896963]
[1768432639210,0.95467004,3359.6,3358.6,0.95896963]
[1768432642714,0.95467004,3359.6,3359.1,0.001]
[1768432644541,0.98493129,3360.0,3359.1,0.97787237]
[1768432644840,0.394,3360.2,3359.3,0.97687237]
[1768432645023,1.37893129,3360.2,3359.3,0.97687237]
[1768432646246,0.98493129,3360.1,3359.3,0.97687237]
[1768432646741,0.98493129,3360.1,3359.1,0.001]
[1768432647043,0.98493129,3360.1,3359.1,0.97787237]
[1768432647439,0.98493129,3360.0,3359.1,0.97787237]
[1768432652538,1.37893129,3360.2,3359.1,0.97787237]
[1768432652734,0.98493129,3360.1,3359.1,0.97787237]
[1768432653855,0.98493129,3360.3,3359.1,0.97787237]
[1768432654021,0.002,3359.7,3359.1,0.97787237]
[1768432655827,0.002,3360.0,3359.1,0.97787237]
[1768432656147,0.002,3360.6,3360.0,0.97687237]
[1768432656524,0.98693129,3360.6,3359.3,0.97687237]
[1768432663465,0.98693129,3360.6,3358.8,0.387]
[1768432663466,0.98493129,3360.4,3358.8,0.001]
[1768432663753,0.98493129,3360.2,3358.8,0.97787237]
[1768432665450,0.98493129,3360.5,3359.0,0.97687237]
[1768432665656,0.395,3360.1,3359.0,0.97687237]
[1768432666553,0.02990177,3360.0,3359.0,0.97687237]
[1768432666754,0.98493129,3360.2,3359.0,0.97687237]
[1768432666929,0.02990177,3360.1,3359.0,0.97687237]
[1768432667856,1.01483306,3360.1,3359.2,0.97687237]
[1768432668157,0.98493129,3360.1,3359.2,0.97687237]
[1768432668359,0.98493129,3360.1,3359.1,0.001]
[1768432670156,0.98493129,3359.9,3359.1,0.001]
[1768432671066,0.395,3359.8,3359.1,0.99142306]
[1768432671932,0.97462436,3360.1,3359.1,0.99142306]
[1768432672132,0.395,3359.9,3359.1,0.99142306]
[1768432673864,1.36962436,3359.9,3359.1,0.99142306]
[1768432674660,0.97462436,3359.8,3359.1,0.001]
[1768432675359,0.97462436,3359.6,3359.1,0.001]
[1768432676057,0.97462436,3359.6,3358.8,0.001]